fUSD/lending_fUSD_20260611
["ID","MTS","AMOUNT","RATE_DAILY","PERIOD"]
[424751505,1781124653000,-603.05310929,0.00030249,2]
[424751503,1781124653000,-586.45652962,0.00030249,2]
[424751502,1781124653000,-276.9077719,0.00030249,2]
[424751501,1781124653000,-478.52829234,0.00030249,2]
[424751506,1781124653000,-721.62434674,0.00030249,2]
[424751581,1781124654000,-1055.48617906,0.00031616,2]
[424751579,1781124654000,-1065.15362425,0.00031616,2]
[424751588,1781124654000,-9343.12,0.00031625,120]
[424751583,1781124654000,-1631.18242773,0.00031616,2]
[424751590,1781124654000,-1138.46895787,0.0003172,2]
[424751576,1781124654000,-150.315118,0.00031512,2]
[424751573,1781124654000,-151.0,0.00031432,2]
[424751571,1781124654000,-339.6,0.00031338,30]
[424751574,1781124654000,-153.80113636,0.00031504,2]
[424751577,1781124654000,-1150.11948107,0.00031616,2]
[424751585,1781124654000,-1123.13294457,0.00031617,2]
[424751575,1781124654000,-150.0,0.00031507,2]
[424751578,1781124654000,-1455.0282448,0.00031616,2]
[424751594,1781124654000,-185.08,0.00031766,2]
[424751582,1781124654000,-1007.42397002,0.00031616,2]
[424751587,1781124654000,-1101.78,0.00031618,30]
[424751589,1781124654000,-500.0,0.00031701,120]
[424751584,1781124654000,-958.69769454,0.00031616,2]
[424751586,1781124654000,-1019.58317022,0.00031617,2]
[424751592,1781124654000,-974.19769814,0.0003172,2]
[424751591,1781124654000,-1084.89992974,0.0003172,2]
[424751595,1781124654000,-482.21,0.00031766,2]
[424751602,1781124654000,-315.68,0.00031766,2]
[424751593,1781124654000,-961.87376921,0.0003172,2]
[424751596,1781124654000,-185.09,0.00031766,2]
[424751572,1781124654000,-644.79446245,0.00031432,2]
[424751580,1781124654000,-1646.22539254,0.00031616,2]
[424751568,1781124654000,-285.0,0.00031234,30]
[424751544,1781124654000,-811.83141512,0.00030854,2]
[424751570,1781124654000,-286.52984053,0.00031305,6]
[424751541,1781124654000,-761.16477735,0.00030854,2]
[424751542,1781124654000,-770.3517286,0.00030854,2]
[424751599,1781124654000,-482.21,0.00031766,2]
[424751545,1781124654000,-801.56147434,0.00030854,2]
[424751543,1781124654000,-904.08327478,0.00030854,2]
[424751553,1781124654000,-309.0,0.00031198,30]
[424751549,1781124654000,-284.95203121,0.00031,30]
[424751547,1781124654000,-573.23,0.00030944,2]
[424751546,1781124654000,-573.23,0.00030944,2]
[424751548,1781124654000,-150.0,0.00030959,30]
[424751550,1781124654000,-586.28,0.00031096,5]
[424751551,1781124654000,-1170.68,0.00031151,30]
[424751552,1781124654000,-265.0,0.00031159,3]
[424751554,1781124654000,-1000.0,0.000312,7]
[424751556,1781124654000,-500.0,0.00031233,60]
[424751555,1781124654000,-500.0,0.00031233,60]
[424751557,1781124654000,-47365.40264775,0.00031233,2]
[424751564,1781124654000,-869.0,0.00031234,30]
[424751560,1781124654000,-990.0,0.00031234,30]
[424751566,1781124654000,-266.0,0.00031234,30]
[424751558,1781124654000,-319.0,0.00031234,30]
[424751559,1781124654000,-274.0,0.00031234,30]
[424751562,1781124654000,-309.0,0.00031234,30]
[424751563,1781124654000,-217.0,0.00031234,30]
[424751565,1781124654000,-321.0,0.00031234,30]
[424751561,1781124654000,-1333.0,0.00031234,30]
[424751567,1781124654000,-1025.0,0.00031234,30]
[424751569,1781124654000,-515.0,0.00031234,30]
[424751597,1781124654000,-577.53,0.00031766,2]
[424751659,1781124654000,-50000.0,0.00032232,60]
[424751601,1781124654000,-396.12,0.00031766,2]
[424751632,1781124654000,-5000.0,0.00032,3]
[424751633,1781124654000,-781.0,0.00032,120]
[424751635,1781124654000,-44600.0,0.00032,2]
[424751636,1781124654000,-198.54567002,0.00032,120]
[424751638,1781124654000,-215.92376884,0.00032,3]
[424751637,1781124654000,-700.0,0.00032,2]
[424751639,1781124654000,-200.0,0.00032017,2]
[424751640,1781124654000,-594.26,0.00032055,5]
[424751641,1781124654000,-1775.8350319,0.00032063,2]
[424751645,1781124654000,-1164.202069,0.000321,7]
[424751642,1781124654000,-668625.85262288,0.000321,15]
[424751648,1781124654000,-8289.829649,0.0003219,2]
[424751634,1781124654000,-172.59769896,0.00032,120]
[424751644,1781124654000,-1164.202069,0.000321,7]
[424751649,1781124654000,-43545.8924106,0.0003219,2]
[424751646,1781124654000,-1164.202069,0.000321,7]
[424751647,1781124654000,-1164.202064,0.000321,7]
[424751643,1781124654000,-241.49,0.000321,7]
[424751652,1781124654000,-309.0,0.00032198,30]
[424751655,1781124654000,-151.0,0.00032229,7]
[424751656,1781124654000,-50000.0,0.00032232,30]
[424751654,1781124654000,-151.0,0.00032229,7]
[424751653,1781124654000,-416.8,0.0003221,5]
[424751658,1781124654000,-50000.0,0.00032232,90]
[424751657,1781124654000,-50000.0,0.00032232,120]
[424751600,1781124654000,-644.04,0.00031766,2]
[424751650,1781124654000,-180.8082199,0.0003219,2]
[424751630,1781124654000,-342.30731625,0.00032,120]
[424751651,1781124654000,-52185.346861,0.0003219,2]
[424751629,1781124654000,-171.87042339,0.00032,120]
[424751631,1781124654000,-194.94433173,0.00032,120]
[424751603,1781124654000,-575.4,0.00031766,2]
[424751605,1781124654000,-151.0,0.00031767,2]
[424751612,1781124654000,-1448.2452304,0.00032,120]
[424751614,1781124654000,-306.23368681,0.00032,120]
[424751607,1781124654000,-11409.96352278,0.00031891,2]
[424751609,1781124654000,-690.25925826,0.00031928,6]
[424751604,1781124654000,-185.57,0.00031766,2]
[424751606,1781124654000,-350.0,0.00031781,7]
[424751608,1781124654000,-690.25925826,0.00031928,6]
[424751615,1781124654000,-210.03438294,0.00032,120]
[424751613,1781124654000,-178.56247937,0.00032,120]
[424751611,1781124654000,-177.82131138,0.00032,120]
[424751610,1781124654000,-170.1,0.00031963,2]
[424751598,1781124654000,-575.4,0.00031766,2]
[424751628,1781124654000,-181.16084517,0.00032,120]
[424751617,1781124654000,-199.66604063,0.00032,120]
[424751627,1781124654000,-185.88762495,0.00032,120]
[424751622,1781124654000,-1207.09974251,0.00032,120]
[424751620,1781124654000,-359.1889445,0.00032,120]
[424751618,1781124654000,-1422.63229724,0.00032,120]
[424751621,1781124654000,-281.69004268,0.00032,120]
[424751619,1781124654000,-237.14307943,0.00032,120]
[424751625,1781124654000,-202.0276865,0.00032,120]
[424751624,1781124654000,-1277.38632259,0.00032,120]
[424751623,1781124654000,-410.96706034,0.00032,120]
[424751616,1781124654000,-363.14635785,0.00032,120]
[424751626,1781124654000,-186.98342845,0.00032,120]
[424751694,1781124655000,-644.04,0.00032588,2]
[424751700,1781124655000,-575.4,0.00032588,2]
[424751693,1781124655000,-3600.78,0.00032588,2]
[424751695,1781124655000,-185.09,0.00032588,2]
[424751696,1781124655000,-482.21,0.00032588,2]
[424751699,1781124655000,-575.42,0.00032588,2]
[424751692,1781124655000,-575.4,0.00032588,2]
[424751691,1781124655000,-15455.17,0.0003255,3]
[424751688,1781124655000,-450.0,0.00032536,60]
[424751690,1781124655000,-500.1,0.00032549,3]
[424751701,1781124655000,-482.21,0.00032588,2]
[424751698,1781124655000,-411.34,0.00032588,2]
[424751702,1781124655000,-482.21,0.00032588,2]
[424751709,1781124655000,-644.04,0.00032588,2]
[424751706,1781124655000,-396.12,0.00032588,2]
[424751707,1781124655000,-482.21,0.00032588,2]
[424751705,1781124655000,-482.21,0.00032588,2]
[424751703,1781124655000,-644.04,0.00032588,2]
[424751704,1781124655000,-644.04,0.00032588,2]
[424751708,1781124655000,-396.12,0.00032588,2]
[424751712,1781124655000,-643.95,0.00032588,2]
[424751711,1781124655000,-396.12,0.00032588,2]
[424751713,1781124655000,-644.04,0.00032588,2]
[424751714,1781124655000,-151.0,0.00032589,2]
[424751723,1781124655000,-500.1,0.00032713,3]
[424751721,1781124655000,-500.1,0.00032713,3]
[424751710,1781124655000,-396.12,0.00032588,2]
[424751689,1781124655000,-382.0,0.00032536,60]
[424751722,1781124655000,-500.1,0.00032713,3]
[424751682,1781124655000,-200.0,0.00032536,60]
[424751660,1781124655000,-900.0,0.00032232,120]
[424751662,1781124655000,-765.0,0.00032232,120]
[424751661,1781124655000,-900.0,0.00032232,120]
[424751674,1781124655000,-515.0,0.00032234,30]
[424751664,1781124655000,-274.0,0.00032234,30]
[424751663,1781124655000,-319.0,0.00032234,30]
[424751667,1781124655000,-309.0,0.00032234,30]
[424751665,1781124655000,-990.0,0.00032234,30]
[424751666,1781124655000,-1333.0,0.00032234,30]
[424751669,1781124655000,-869.0,0.00032234,30]
[424751671,1781124655000,-266.0,0.00032234,30]
[424751670,1781124655000,-321.0,0.00032234,30]
[424751681,1781124655000,-200.0,0.00032536,60]
[424751672,1781124655000,-1025.0,0.00032234,30]
[424751668,1781124655000,-217.0,0.00032234,30]
[424751676,1781124655000,-2644.27,0.00032408,33]
[424751675,1781124655000,-150.0,0.00032383,2]
[424751679,1781124655000,-3545.0,0.00032536,60]
[424751687,1781124655000,-3016.0,0.00032536,60]
[424751684,1781124655000,-1300.0,0.00032536,60]
[424751685,1781124655000,-1300.0,0.00032536,60]
[424751678,1781124655000,-5000.0,0.00032536,60]
[424751677,1781124655000,-9343.12,0.00032447,120]
[424751680,1781124655000,-3011.0,0.00032536,60]
[424751686,1781124655000,-1208.0,0.00032536,60]
[424751683,1781124655000,-200.0,0.00032536,60]
[424751673,1781124655000,-285.0,0.00032234,30]
[424751720,1781124655000,-500.1,0.00032713,3]
[424751697,1781124655000,-482.87,0.00032588,2]
[424751717,1781124655000,-500.1,0.00032713,3]
[424751749,1781124655000,-500.0,0.00032877,7]
[424751752,1781124655000,-500.0,0.00032877,7]
[424751754,1781124655000,-500.0,0.00032877,7]
[424751757,1781124655000,-500.0,0.00032877,7]
[424751755,1781124655000,-500.0,0.00032877,7]
[424751756,1781124655000,-500.0,0.00032877,7]
[424751753,1781124655000,-500.0,0.00032877,7]
[424751768,1781124655000,-314.85092,0.00032877,7]
[424751764,1781124655000,-260.495319,0.00032877,7]
[424751758,1781124655000,-151.0,0.00032877,7]
[424751767,1781124655000,-314.85092,0.00032877,7]
[424751761,1781124655000,-314.85092,0.00032877,7]
[424751751,1781124655000,-500.0,0.00032877,7]
[424751762,1781124655000,-260.495319,0.00032877,7]
[424751760,1781124655000,-260.495319,0.00032877,7]
[424751766,1781124655000,-260.495319,0.00032877,7]
[424751765,1781124655000,-314.85092,0.00032877,7]
[424751763,1781124655000,-314.85092,0.00032877,7]
[424751777,1781124655000,-500.0,0.00032877,7]
[424751773,1781124655000,-314.85092,0.00032877,7]
[424751771,1781124655000,-260.495319,0.00032877,7]
[424751776,1781124655000,-314.85092,0.00032877,7]
[424751772,1781124655000,-500.0,0.00032877,7]
[424751769,1781124655000,-260.495319,0.00032877,7]
[424751775,1781124655000,-260.495319,0.00032877,7]
[424751724,1781124655000,-500.1,0.00032713,3]
[424751759,1781124655000,-171.425166,0.00032877,7]
[424751750,1781124655000,-500.0,0.00032877,7]
[424751770,1781124655000,-314.85092,0.00032877,7]
[424751747,1781124655000,-500.0,0.00032877,7]
[424751748,1781124655000,-500.0,0.00032877,7]
[424751716,1781124655000,-405.9,0.00032698,2]
[424751715,1781124655000,-1170.68,0.00032614,30]
[424751719,1781124655000,-500.1,0.00032713,3]
[424751725,1781124655000,-563.27484258,0.00032713,3]
[424751727,1781124655000,-166.0,0.0003276,60]
[424751731,1781124655000,-382.0,0.00032812,2]
[424751728,1781124655000,-1472.55704807,0.00032777,2]
[424751718,1781124655000,-500.1,0.00032713,3]
[424751730,1781124655000,-3556.0,0.00032812,2]
[424751726,1781124655000,-250.114995,0.00032748,30]
[424751733,1781124655000,-350.0,0.0003286,26]
[424751732,1781124655000,-933.0,0.00032812,2]
[424751729,1781124655000,-200.0,0.00032786,2]
[424751746,1781124655000,-500.0,0.00032877,7]
[424751744,1781124655000,-215.213697,0.00032877,7]
[424751743,1781124655000,-215.213697,0.00032877,7]
[424751734,1781124655000,-153.80113636,0.00032873,2]
[424751740,1781124655000,-350.0,0.00032877,30]
[424751741,1781124655000,-277.432391,0.00032877,2]
[424751774,1781124655000,-500.0,0.00032877,7]
[424751745,1781124655000,-215.213697,0.00032877,7]
[424751738,1781124655000,-406.0,0.00032877,2]
[424751735,1781124655000,-2000.0,0.00032876,2]
[424751737,1781124655000,-2217.0,0.00032877,2]
[424751739,1781124655000,-350.0,0.00032877,30]
[424751736,1781124655000,-150.0,0.00032876,120]
[424751742,1781124655000,-215.213697,0.00032877,7]
[424751787,1781124656000,-314.85092,0.00032877,7]
[424751780,1781124656000,-260.495319,0.00032877,7]
[424751781,1781124656000,-500.0,0.00032877,7]
[424751779,1781124656000,-260.495319,0.00032877,7]
[424751778,1781124656000,-314.85092,0.00032877,7]
[424751782,1781124656000,-314.85092,0.00032877,7]
[424751785,1781124656000,-314.85092,0.00032877,7]
[424751784,1781124656000,-260.495319,0.00032877,7]
[424751788,1781124656000,-500.0,0.00032877,7]
[424751789,1781124656000,-260.495319,0.00032877,7]
[424751790,1781124656000,-500.0,0.00032877,7]
[424751783,1781124656000,-500.0,0.00032877,7]
[424751791,1781124656000,-500.0,0.00032877,7]
[424751792,1781124656000,-500.0,0.00032877,7]
[424751794,1781124656000,-500.0,0.00032877,7]
[424751795,1781124656000,-500.0,0.00032877,7]
[424751793,1781124656000,-500.0,0.00032877,7]
[424751797,1781124656000,-267.615407,0.00032877,7]
[424751798,1781124656000,-220.81686791,0.00032877,7]
[424751796,1781124656000,-267.615407,0.00032877,7]
[424751786,1781124656000,-260.495319,0.00032877,7]
[424751807,1781124657000,-412.517303,0.00032877,7]
[424751809,1781124657000,-412.517303,0.00032877,7]
[424751810,1781124657000,-267.615407,0.00032877,7]
[424751816,1781124657000,-267.615407,0.00032877,7]
[424751817,1781124657000,-412.517303,0.00032877,7]
[424751811,1781124657000,-412.517303,0.00032877,7]
[424751812,1781124657000,-267.615407,0.00032877,7]
[424751815,1781124657000,-412.517303,0.00032877,7]
[424751813,1781124657000,-412.517303,0.00032877,7]
[424751814,1781124657000,-267.615407,0.00032877,7]
[424751803,1781124657000,-412.517303,0.00032877,7]
[424751808,1781124657000,-267.615407,0.00032877,7]
[424751806,1781124657000,-267.615407,0.00032877,7]
[424751805,1781124657000,-412.517303,0.00032877,7]
[424751804,1781124657000,-267.615407,0.00032877,7]
[424751799,1781124657000,-46.79853909,0.00032877,7]
[424751801,1781124657000,-412.517303,0.00032877,7]
[424751802,1781124657000,-267.615407,0.00032877,7]
[424751800,1781124657000,-267.615407,0.00032877,7]
[424751820,1781124657000,-412.517303,0.00032877,7]
[424751818,1781124657000,-412.517303,0.00032877,7]
[424751828,1781124657000,-190.701042,0.00032877,7]
[424751836,1781124657000,-190.701042,0.00032877,7]
[424751827,1781124657000,-179.457086,0.00032877,7]
[424751821,1781124657000,-179.457086,0.00032877,7]
[424751842,1781124657000,-190.701042,0.00032877,7]
[424751844,1781124657000,-190.701042,0.00032877,7]
[424751841,1781124657000,-179.457086,0.00032877,7]
[424751839,1781124657000,-179.457086,0.00032877,7]
[424751840,1781124657000,-190.701042,0.00032877,7]
[424751837,1781124657000,-179.457086,0.00032877,7]
[424751833,1781124657000,-179.457086,0.00032877,7]
[424751830,1781124657000,-190.701042,0.00032877,7]
[424751834,1781124657000,-190.701042,0.00032877,7]
[424751843,1781124657000,-190.701042,0.00032877,7]
[424751829,1781124657000,-179.457086,0.00032877,7]
[424751831,1781124657000,-179.457086,0.00032877,7]
[424751819,1781124657000,-412.517303,0.00032877,7]
[424751832,1781124657000,-190.701042,0.00032877,7]
[424751835,1781124657000,-179.457086,0.00032877,7]
[424751826,1781124657000,-190.701042,0.00032877,7]
[424751823,1781124657000,-179.457086,0.00032877,7]
[424751825,1781124657000,-179.457086,0.00032877,7]
[424751824,1781124657000,-190.701042,0.00032877,7]
[424751822,1781124657000,-179.457086,0.00032877,7]
[424751838,1781124657000,-190.701042,0.00032877,7]
[424751876,1781124658000,-245.594143,0.00032877,7]
[424751877,1781124658000,-245.594143,0.00032877,7]
[424751874,1781124658000,-285.825768,0.00032877,7]
[424751873,1781124658000,-285.825768,0.00032877,7]
[424751878,1781124658000,-245.594143,0.00032877,7]
[424751872,1781124658000,-285.825768,0.00032877,7]
[424751879,1781124658000,-245.594143,0.00032877,7]
[424751869,1781124658000,-285.825768,0.00032877,7]
[424751875,1781124658000,-245.594143,0.00032877,7]
[424751880,1781124658000,-245.594143,0.00032877,7]
[424751887,1781124658000,-151.0,0.00032877,7]
[424751881,1781124658000,-245.594143,0.00032877,7]
[424751884,1781124658000,-151.0,0.00032877,7]
[424751886,1781124658000,-245.594143,0.00032877,7]
[424751883,1781124658000,-245.594143,0.00032877,7]
[424751888,1781124658000,-245.594143,0.00032877,7]
[424751885,1781124658000,-151.0,0.00032877,7]
[424751890,1781124658000,-151.0,0.00032877,7]
[424751897,1781124658000,-396.162214,0.00032877,7]
[424751871,1781124658000,-285.825768,0.00032877,7]
[424751889,1781124658000,-245.594143,0.00032877,7]
[424751882,1781124658000,-245.594143,0.00032877,7]
[424751870,1781124658000,-285.825768,0.00032877,7]
[424751856,1781124658000,-151.0,0.00032877,7]
[424751866,1781124658000,-285.825768,0.00032877,7]
[424751896,1781124658000,-341.764286,0.00032877,7]
[424751845,1781124658000,-295.484529,0.00032877,7]
[424751849,1781124658000,-151.0,0.00032877,7]
[424751846,1781124658000,-295.484529,0.00032877,7]
[424751847,1781124658000,-295.484529,0.00032877,7]
[424751848,1781124658000,-295.484529,0.00032877,7]
[424751850,1781124658000,-295.484529,0.00032877,7]
[424751851,1781124658000,-151.0,0.00032877,7]
[424751852,1781124658000,-151.0,0.00032877,7]
[424751857,1781124658000,-295.484529,0.00032877,7]
[424751867,1781124658000,-285.825768,0.00032877,7]
[424751854,1781124658000,-151.0,0.00032877,7]
[424751853,1781124658000,-295.484529,0.00032877,7]
[424751858,1781124658000,-151.0,0.00032877,7]
[424751859,1781124658000,-295.484529,0.00032877,7]
[424751862,1781124658000,-295.484529,0.00032877,7]
[424751864,1781124658000,-285.825768,0.00032877,7]
[424751860,1781124658000,-295.484529,0.00032877,7]
[424751861,1781124658000,-295.484529,0.00032877,7]
[424751863,1781124658000,-285.825768,0.00032877,7]
[424751865,1781124658000,-285.825768,0.00032877,7]
[424751868,1781124658000,-285.825768,0.00032877,7]
[424751855,1781124658000,-295.484529,0.00032877,7]
[424751892,1781124658000,-151.0,0.00032877,7]
[424751901,1781124658000,-175.612068,0.00032877,7]
[424751894,1781124658000,-396.162214,0.00032877,7]
[424751920,1781124658000,-151.0,0.00032877,7]
[424751919,1781124658000,-396.162214,0.00032877,7]
[424751926,1781124658000,-151.0,0.00032877,7]
[424751925,1781124658000,-151.0,0.00032877,7]
[424751927,1781124658000,-151.0,0.00032877,7]
[424751924,1781124658000,-151.0,0.00032877,7]
[424751929,1781124658000,-151.0,0.00032877,7]
[424751939,1781124658000,-151.0,0.00032877,7]
[424751938,1781124658000,-151.0,0.00032877,7]
[424751928,1781124658000,-151.0,0.00032877,7]
[424751921,1781124658000,-396.162214,0.00032877,7]
[424751930,1781124658000,-151.0,0.00032877,7]
[424751935,1781124658000,-151.0,0.00032877,7]
[424751932,1781124658000,-151.0,0.00032877,7]
[424751934,1781124658000,-151.0,0.00032877,7]
[424751933,1781124658000,-151.0,0.00032877,7]
[424751931,1781124658000,-151.0,0.00032877,7]
[424751936,1781124658000,-151.0,0.00032877,7]
[424751940,1781124658000,-229.157999,0.00032877,7]
[424751942,1781124658000,-232.559551,0.00032877,7]
[424751944,1781124658000,-232.559551,0.00032877,7]
[424751891,1781124658000,-151.0,0.00032877,7]
[424751937,1781124658000,-151.0,0.00032877,7]
[424751922,1781124658000,-151.0,0.00032877,7]
[424751943,1781124658000,-232.559551,0.00032877,7]
[424751918,1781124658000,-151.0,0.00032877,7]
[424751923,1781124658000,-151.0,0.00032877,7]
[424751893,1781124658000,-341.764286,0.00032877,7]
[424751898,1781124658000,-151.0,0.00032877,7]
[424751900,1781124658000,-396.162214,0.00032877,7]
[424751941,1781124658000,-232.559551,0.00032877,7]
[424751904,1781124658000,-396.162214,0.00032877,7]
[424751902,1781124658000,-341.764286,0.00032877,7]
[424751899,1781124658000,-341.764286,0.00032877,7]
[424751907,1781124658000,-396.162214,0.00032877,7]
[424751905,1781124658000,-396.162214,0.00032877,7]
[424751906,1781124658000,-341.764286,0.00032877,7]
[424751895,1781124658000,-151.0,0.00032877,7]
[424751909,1781124658000,-396.162214,0.00032877,7]
[424751903,1781124658000,-341.764286,0.00032877,7]
[424751916,1781124658000,-396.162214,0.00032877,7]
[424751913,1781124658000,-396.162214,0.00032877,7]
[424751915,1781124658000,-341.764286,0.00032877,7]
[424751917,1781124658000,-341.764286,0.00032877,7]
[424751911,1781124658000,-396.162214,0.00032877,7]
[424751910,1781124658000,-341.764286,0.00032877,7]
[424751908,1781124658000,-341.764286,0.00032877,7]
[424751912,1781124658000,-341.764286,0.00032877,7]
[424751914,1781124658000,-341.764286,0.00032877,7]
[424751969,1781124659000,-297.374598,0.00032877,7]
[424751967,1781124659000,-279.683243,0.00032877,7]
[424751970,1781124659000,-297.374598,0.00032877,7]
[424751973,1781124659000,-279.683243,0.00032877,7]
[424751972,1781124659000,-279.683243,0.00032877,7]
[424751974,1781124659000,-297.374598,0.00032877,7]
[424751977,1781124659000,-151.0,0.00032877,7]
[424751979,1781124659000,-151.0,0.00032877,7]
[424751978,1781124659000,-151.0,0.00032877,7]
[424751976,1781124659000,-297.374598,0.00032877,7]
[424751971,1781124659000,-279.683243,0.00032877,7]
[424751982,1781124659000,-151.0,0.00032877,7]
[424751983,1781124659000,-151.0,0.00032877,7]
[424751980,1781124659000,-151.0,0.00032877,7]
[424751989,1781124659000,-151.0,0.00032877,7]
[424751988,1781124659000,-251.849158,0.00032877,7]
[424751968,1781124659000,-297.374598,0.00032877,7]
[424751987,1781124659000,-151.0,0.00032877,7]
[424751975,1781124659000,-297.374598,0.00032877,7]
[424751960,1781124659000,-279.683243,0.00032877,7]
[424751953,1781124659000,-232.559551,0.00032877,7]
[424751964,1781124659000,-297.374598,0.00032877,7]
[424751984,1781124659000,-151.0,0.00032877,7]
[424751948,1781124659000,-232.559551,0.00032877,7]
[424751949,1781124659000,-232.559551,0.00032877,7]
[424751945,1781124659000,-232.559551,0.00032877,7]
[424751947,1781124659000,-232.559551,0.00032877,7]
[424751946,1781124659000,-232.559551,0.00032877,7]
[424751950,1781124659000,-232.559551,0.00032877,7]
[424751959,1781124659000,-279.683243,0.00032877,7]
[424751955,1781124659000,-279.683243,0.00032877,7]
[424751951,1781124659000,-232.559551,0.00032877,7]
[424751954,1781124659000,-279.683243,0.00032877,7]
[424751957,1781124659000,-297.374598,0.00032877,7]
[424751956,1781124659000,-297.374598,0.00032877,7]
[424751952,1781124659000,-279.683243,0.00032877,7]
[424751958,1781124659000,-297.374598,0.00032877,7]
[424751961,1781124659000,-279.683243,0.00032877,7]
[424751963,1781124659000,-297.374598,0.00032877,7]
[424751966,1781124659000,-279.683243,0.00032877,7]
[424751965,1781124659000,-279.683243,0.00032877,7]
[424751962,1781124659000,-297.374598,0.00032877,7]
[424751986,1781124659000,-151.0,0.00032877,7]
[424751998,1781124659000,-200.369014,0.00032877,7]
[424751981,1781124659000,-151.0,0.00032877,7]
[424752013,1781124659000,-200.369014,0.00032877,7]
[424752015,1781124659000,-200.369014,0.00032877,7]
[424752017,1781124659000,-484.923714,0.00032877,7]
[424752016,1781124659000,-200.369014,0.00032877,7]
[424752019,1781124659000,-484.923714,0.00032877,7]
[424752018,1781124659000,-484.923714,0.00032877,7]
[424752021,1781124659000,-484.923714,0.00032877,7]
[424752029,1781124659000,-484.923714,0.00032877,7]
[424752020,1781124659000,-484.923714,0.00032877,7]
[424752030,1781124659000,-484.923714,0.00032877,7]
[424751985,1781124659000,-151.0,0.00032877,7]
[424752027,1781124659000,-484.923714,0.00032877,7]
[424752028,1781124659000,-484.923714,0.00032877,7]
[424752024,1781124659000,-484.923714,0.00032877,7]
[424752023,1781124659000,-484.923714,0.00032877,7]
[424752025,1781124659000,-484.923714,0.00032877,7]
[424752026,1781124659000,-484.923714,0.00032877,7]
[424752031,1781124659000,-173.31379562,0.00032877,7]
[424752032,1781124659000,-287.37,0.00013698,2]
[424752012,1781124659000,-200.369014,0.00032877,7]
[424752014,1781124659000,-200.369014,0.00032877,7]
[424752022,1781124659000,-484.923714,0.00032877,7]
[424752010,1781124659000,-200.369014,0.00032877,7]
[424752011,1781124659000,-200.369014,0.00032877,7]
[424751990,1781124659000,-251.849158,0.00032877,7]
[424751993,1781124659000,-251.849158,0.00032877,7]
[424751992,1781124659000,-251.849158,0.00032877,7]
[424751994,1781124659000,-251.849158,0.00032877,7]
[424751999,1781124659000,-251.849158,0.00032877,7]
[424751996,1781124659000,-200.369014,0.00032877,7]
[424751991,1781124659000,-251.849158,0.00032877,7]
[424751997,1781124659000,-251.849158,0.00032877,7]
[424752000,1781124659000,-200.369014,0.00032877,7]
[424752001,1781124659000,-200.369014,0.00032877,7]
[424752002,1781124659000,-200.369014,0.00032877,7]
[424752004,1781124659000,-200.369014,0.00032877,7]
[424752005,1781124659000,-251.849158,0.00032877,7]
[424752007,1781124659000,-251.849158,0.00032877,7]
[424752003,1781124659000,-251.849158,0.00032877,7]
[424752006,1781124659000,-200.369014,0.00032877,7]
[424752009,1781124659000,-200.369014,0.00032877,7]
[424751995,1781124659000,-251.849158,0.00032877,7]
[424752008,1781124659000,-200.369014,0.00032877,7]
[424752041,1781124660000,-151.0,0.00032877,7]
[424752043,1781124660000,-151.0,0.00032877,7]
[424752050,1781124660000,-500.1,0.00032549,3]